[Event "*** SCC Grand Prix: Titled Tuesday Blitz"]
[Site "Chess.com"]
[Date "2020.07.21"]
[Round "5"]
[White "Tactictic"]
[Black "TudorAnton"]
[Result "1-0"]
[WhiteElo "2384"]
[BlackElo "2506"]
[TimeControl "180+1"]
[EndTime "10:52:59 PDT"]
[Termination "Tactictic won by resignation"]

1. e4 {[%clk 0:03:00.9]} 1... e5 {[%clk 0:02:54.9]} 2. Nf3 {[%clk 0:02:58.1]}
2... Nc6 {[%clk 0:02:53]} 3. Bc4 {[%clk 0:02:58.5]} 3... Nf6 {[%clk 0:02:51.5]}
4. d3 {[%clk 0:02:58.4]} 4... Bc5 {[%clk 0:02:51.3]} 5. O-O {[%clk 0:02:57]}
5... d6 {[%clk 0:02:51.5]} 6. a4 {[%clk 0:02:53.3]} 6... Bg4 {[%clk 0:02:48.9]}
7. c3 {[%clk 0:02:48.8]} 7... a5 {[%clk 0:02:49.4]} 8. Nbd2 {[%clk 0:02:45.6]}
8... Qd7 {[%clk 0:02:47.9]} 9. Re1 {[%clk 0:02:40.3]} 9... h6 {[%clk 0:02:40.6]}
10. Bb5 {[%clk 0:02:32.4]} 10... O-O {[%clk 0:02:28.9]} 11. h3 {[%clk
0:02:21.5]} 11... Bh5 {[%clk 0:02:27.9]} 12. Nf1 {[%clk 0:02:20.5]} 12... Qc8
{[%clk 0:02:23.4]} 13. Ng3 {[%clk 0:02:18.6]} 13... Bg6 {[%clk 0:02:22.9]} 14.
Nh4 {[%clk 0:02:15.8]} 14... Kh7 {[%clk 0:02:21]} 15. Nhf5 {[%clk 0:02:12.7]}
15... Ng8 {[%clk 0:02:17]} 16. Be3 {[%clk 0:01:54.8]} 16... Bxe3 {[%clk
0:02:16.4]} 17. Nxe3 {[%clk 0:01:54]} 17... Nce7 {[%clk 0:02:15.9]} 18. d4
{[%clk 0:01:49.7]} 18... c6 {[%clk 0:02:12.9]} 19. Bd3 {[%clk 0:01:48.5]} 19...
f6 {[%clk 0:02:12.8]} 20. h4 {[%clk 0:01:33.6]} 20... Kh8 {[%clk 0:02:12.9]} 21.
Rc1 {[%clk 0:01:27.2]} 21... c5 {[%clk 0:02:09.8]} 22. dxc5 {[%clk 0:01:04.4]}
22... dxc5 {[%clk 0:02:09.4]} 23. Bc4 {[%clk 0:01:02.1]} 23... Rd8 {[%clk
0:02:08.2]} 24. Qb3 {[%clk 0:01:01.3]} 24... Qc6 {[%clk 0:02:04.2]} 25. Nd5
{[%clk 0:00:56]} 25... Nxd5 {[%clk 0:02:03.7]} 26. Bxd5 {[%clk 0:00:56.9]} 26...
Qc7 {[%clk 0:01:58.4]} 27. Rcd1 {[%clk 0:00:43.1]} 27... Be8 {[%clk 0:01:40.8]}
28. Bxg8 {[%clk 0:00:40.8]} 1-0

[Event "*** SCC Grand Prix: Titled Tuesday Blitz"]
[Site "Chess.com"]
[Date "2020.07.21"]
[Round "5"]
[White "checkmatequen"]
[Black "LisikValera"]
[Result "1/2-1/2"]
[WhiteElo "2306"]
[BlackElo "2461"]
[TimeControl "180+1"]
[EndTime "10:53:18 PDT"]
[Termination "Game drawn by agreement"]

1. e4 {[%clk 0:03:00.9]} 1... e6 {[%clk 0:02:53.2]} 2. d4 {[%clk 0:03:00]} 2...
d5 {[%clk 0:02:52.4]} 3. Nd2 {[%clk 0:03:00.2]} 3... Nc6 {[%clk 0:02:51.7]} 4.
Ngf3 {[%clk 0:02:59.5]} 4... Nf6 {[%clk 0:02:52.2]} 5. Bd3 {[%clk 0:03:00]} 5...
Nb4 {[%clk 0:02:49.5]} 6. e5 {[%clk 0:02:58.5]} 6... Nxd3+ {[%clk 0:02:48.9]} 7.
cxd3 {[%clk 0:02:59.4]} 7... Ng8 {[%clk 0:02:48.9]} 8. O-O {[%clk 0:02:59.4]}
8... Ne7 {[%clk 0:02:49]} 9. Nh4 {[%clk 0:02:50]} 9... Ng6 {[%clk 0:02:48.2]}
10. Nxg6 {[%clk 0:02:49.6]} 10... hxg6 {[%clk 0:02:49.1]} 11. h3 {[%clk
0:02:49.2]} 11... Be7 {[%clk 0:02:48]} 12. f4 {[%clk 0:02:45.9]} 12... Bd7
{[%clk 0:02:44.4]} 13. Nf3 {[%clk 0:02:46.1]} 13... c5 {[%clk 0:02:41.7]} 14.
dxc5 {[%clk 0:02:44.3]} 14... Bxc5+ {[%clk 0:02:41.1]} 15. d4 {[%clk 0:02:44.9]}
15... Be7 {[%clk 0:02:40.7]} 16. Bd2 {[%clk 0:02:43.3]} 16... Qb6 {[%clk
0:02:39.4]} 17. Qb3 {[%clk 0:02:40.2]} 17... Qxb3 {[%clk 0:02:36.1]} 18. axb3
{[%clk 0:02:41.1]} 18... O-O {[%clk 0:02:31.3]} 19. Rfc1 {[%clk 0:02:35.6]}
19... Bc6 {[%clk 0:02:22.9]} 20. b4 {[%clk 0:02:30.9]} 20... a6 {[%clk
0:02:08.7]} 21. Ne1 {[%clk 0:02:29.2]} 21... f6 {[%clk 0:02:01.7]} 22. Nd3
{[%clk 0:02:27.6]} 22... g5 {[%clk 0:01:57.1]} 23. fxg5 {[%clk 0:02:25.8]} 23...
fxg5 {[%clk 0:01:49.8]} 24. Nc5 {[%clk 0:02:26.2]} 24... Bxc5 {[%clk 0:01:48.9]}
25. bxc5 {[%clk 0:02:27.1]} 25... g4 {[%clk 0:01:47]} 26. hxg4 {[%clk
0:02:24.7]} 26... Rf7 {[%clk 0:01:46.3]} 27. Rf1 {[%clk 0:02:24.2]} 27... Rxf1+
{[%clk 0:01:44.3]} 28. Rxf1 {[%clk 0:02:23]} 28... Be8 {[%clk 0:01:37]} 29. Kh2
{[%clk 0:02:18]} 29... Bg6 {[%clk 0:01:36.4]} 30. Kg3 {[%clk 0:02:17.3]} 30...
Be4 {[%clk 0:01:32.5]} 31. b4 {[%clk 0:02:14.1]} 31... Rc8 {[%clk 0:01:30.4]}
32. Ra1 {[%clk 0:02:12.2]} 32... Bd3 {[%clk 0:01:29.4]} 33. Ra3 {[%clk 0:02:01]}
33... Bc4 {[%clk 0:01:28.9]} 34. g5 {[%clk 0:01:59.1]} 34... Rf8 {[%clk
0:01:24.8]} 35. Rf3 {[%clk 0:01:56.7]} 35... Rxf3+ {[%clk 0:01:22.8]} 36. gxf3
{[%clk 0:01:57.6]} 36... g6 {[%clk 0:01:21.3]} 37. f4 {[%clk 0:01:54.4]} 37...
Kf7 {[%clk 0:01:21.5]} 38. Kf2 {[%clk 0:01:52.1]} 38... Ke8 {[%clk 0:01:21.1]}
39. Ke3 {[%clk 0:01:52.5]} 39... Kd7 {[%clk 0:01:21.6]} 40. Bc3 {[%clk
0:01:50.6]} 40... Kc6 {[%clk 0:01:21.4]} 41. Kd2 {[%clk 0:01:50.8]} 41... Bf1
{[%clk 0:01:19.8]} 42. Kc2 {[%clk 0:01:47.9]} 42... Kb5 {[%clk 0:01:16]} 43. Kb3
{[%clk 0:01:37.9]} 43... Bc4+ {[%clk 0:01:15.2]} 44. Kb2 {[%clk 0:01:37.4]}
44... Bd3 {[%clk 0:01:15.4]} 45. Kb3 {[%clk 0:01:36.3]} 45... Bf5 {[%clk
0:01:15.2]} 46. Bd2 {[%clk 0:01:33]} 1/2-1/2

[Event "*** SCC Grand Prix: Titled Tuesday Blitz"]
[Site "Chess.com"]
[Date "2020.07.21"]
[Round "5"]
[White "ChessWarrior7197"]
[Black "bocah_sakit"]
[Result "1-0"]
[WhiteElo "2882"]
[BlackElo "2731"]
[TimeControl "180+1"]
[EndTime "10:53:27 PDT"]
[Termination "ChessWarrior7197 won by resignation"]

1. e4 {[%clk 0:03:00.9]} 1... c5 {[%clk 0:03:00.2]} 2. Nf3 {[%clk 0:03:00.7]}
2... Nc6 {[%clk 0:03:00.7]} 3. Bb5 {[%clk 0:03:00.3]} 3... g6 {[%clk 0:03:01]}
4. Bxc6 {[%clk 0:03:00.7]} 4... dxc6 {[%clk 0:03:01.9]} 5. d3 {[%clk 0:03:01.3]}
5... Bg7 {[%clk 0:03:02.4]} 6. h3 {[%clk 0:03:02]} 6... Nf6 {[%clk 0:03:03]} 7.
Nc3 {[%clk 0:03:02.5]} 7... Nd7 {[%clk 0:03:03.6]} 8. Be3 {[%clk 0:03:03]} 8...
b6 {[%clk 0:03:04]} 9. Qd2 {[%clk 0:03:03.4]} 9... h6 {[%clk 0:03:04.6]} 10. O-O
{[%clk 0:03:02.4]} 10... e5 {[%clk 0:03:04.6]} 11. Ne2 {[%clk 0:03:02.2]} 11...
Nf8 {[%clk 0:02:59.6]} 12. Nh2 {[%clk 0:03:02.3]} 12... Ne6 {[%clk 0:02:57.6]}
13. Rae1 {[%clk 0:03:02.3]} 13... Qe7 {[%clk 0:02:42.4]} 14. b3 {[%clk
0:03:01.6]} 14... Nd4 {[%clk 0:02:30.1]} 15. f4 {[%clk 0:03:00.4]} 15... Nxe2+
{[%clk 0:02:29.8]} 16. Rxe2 {[%clk 0:03:01]} 16... exf4 {[%clk 0:02:29.8]} 17.
Bxf4 {[%clk 0:03:01.9]} 17... Be6 {[%clk 0:02:30.3]} 18. a4 {[%clk 0:03:00.5]}
18... O-O-O {[%clk 0:02:24]} 19. a5 {[%clk 0:03:00.9]} 19... Kb7 {[%clk
0:02:23]} 20. Nf3 {[%clk 0:02:57.3]} 20... g5 {[%clk 0:02:18.6]} 21. Be5 {[%clk
0:02:53.7]} 21... Bxe5 {[%clk 0:02:06.1]} 22. Nxe5 {[%clk 0:02:54.6]} 22... Qc7
{[%clk 0:02:06.8]} 23. Qc3 {[%clk 0:02:50.8]} 23... h5 {[%clk 0:01:51.4]} 24.
Ref2 {[%clk 0:02:49.7]} 24... Rh7 {[%clk 0:01:51.6]} 25. Nf3 {[%clk 0:02:41.3]}
25... Rg8 {[%clk 0:01:46.6]} 26. Qf6 {[%clk 0:02:36.6]} 26... Rhg7 {[%clk
0:01:43.1]} 27. Ne5 {[%clk 0:02:31.3]} 27... g4 {[%clk 0:01:38.1]} 28. h4 {[%clk
0:02:29.6]} 28... g3 {[%clk 0:01:38.3]} 29. Rf4 {[%clk 0:02:23.7]} 29... Qd6
{[%clk 0:01:28.1]} 30. Nf3 {[%clk 0:02:18]} 30... Rg6 {[%clk 0:01:15.5]} 31. Qe5
{[%clk 0:02:16.9]} 31... Qd8 {[%clk 0:00:33.5]} 32. Ng5 {[%clk 0:02:06.4]} 32...
f6 {[%clk 0:00:32.6]} 33. Rxf6 {[%clk 0:01:59.1]} 33... Rxf6 {[%clk 0:00:27.6]}
34. Rxf6 {[%clk 0:02:00]} 34... Bg4 {[%clk 0:00:25.9]} 35. Nf7 {[%clk
0:01:56.1]} 35... Ka8 {[%clk 0:00:20.3]} 36. Nxd8 {[%clk 0:01:55.5]} 1-0

[Event "*** SCC Grand Prix: Titled Tuesday Blitz"]
[Site "Chess.com"]
[Date "2020.07.21"]
[Round "5"]
[White "okriak"]
[Black "1f3_2g41-0"]
[Result "1-0"]
[WhiteElo "2703"]
[BlackElo "2389"]
[TimeControl "180+1"]
[EndTime "10:53:40 PDT"]
[Termination "okriak won by resignation"]

1. Nf3 {[%clk 0:02:56.6]} 1... d5 {[%clk 0:02:59.1]} 2. e3 {[%clk 0:02:55.8]}
2... Nf6 {[%clk 0:02:58.6]} 3. c4 {[%clk 0:02:56.2]} 3... c5 {[%clk 0:02:56.5]}
4. cxd5 {[%clk 0:02:54.2]} 4... Nxd5 {[%clk 0:02:55.6]} 5. Nc3 {[%clk
0:02:54.5]} 5... g6 {[%clk 0:02:55.4]} 6. Qb3 {[%clk 0:02:52.4]} 6... Nb4 {[%clk
0:02:50.6]} 7. Bc4 {[%clk 0:02:48.9]} 7... e6 {[%clk 0:02:47.7]} 8. a3 {[%clk
0:02:48.5]} 8... Nd3+ {[%clk 0:02:43.9]} 9. Ke2 {[%clk 0:02:48.4]} 9... Nxc1+
{[%clk 0:02:43.4]} 10. Raxc1 {[%clk 0:02:48]} 10... Bg7 {[%clk 0:02:43]} 11.
Bb5+ {[%clk 0:02:38.2]} 11... Bd7 {[%clk 0:02:40.1]} 12. Qc4 {[%clk 0:02:22.8]}
12... Bxb5 {[%clk 0:02:21.7]} 13. Qxb5+ {[%clk 0:02:21]} 13... Nd7 {[%clk
0:02:20.6]} 14. Ne4 {[%clk 0:02:17.3]} 14... O-O {[%clk 0:02:18.2]} 15. Nxc5
{[%clk 0:02:16.1]} 15... Nxc5 {[%clk 0:02:16]} 16. Rxc5 {[%clk 0:02:15.4]} 16...
a6 {[%clk 0:02:15]} 17. Qb3 {[%clk 0:02:12.8]} 17... b5 {[%clk 0:02:09.8]} 18.
d4 {[%clk 0:02:11.9]} 18... Qa5 {[%clk 0:02:04.4]} 19. Rhc1 {[%clk 0:02:08.9]}
19... Rfd8 {[%clk 0:02:04]} 20. g3 {[%clk 0:02:06.9]} 20... h5 {[%clk
0:02:00.3]} 21. h4 {[%clk 0:02:06.5]} 21... Bf8 {[%clk 0:01:42.9]} 22. Rc6
{[%clk 0:02:05.7]} 22... b4 {[%clk 0:01:38.8]} 23. a4 {[%clk 0:02:02.9]} 23...
Qf5 {[%clk 0:01:34.1]} 24. Qd3 {[%clk 0:01:48.5]} 24... Qa5 {[%clk 0:01:28.2]}
25. b3 {[%clk 0:01:47.2]} 25... Rd5 {[%clk 0:01:21.8]} 26. Rc8 {[%clk
0:01:39.9]} 26... Rxc8 {[%clk 0:01:20.2]} 27. Rxc8 {[%clk 0:01:38.8]} 27... Kg7
{[%clk 0:01:19.7]} 28. Rc6 {[%clk 0:01:35.4]} 28... Rf5 {[%clk 0:01:19.3]} 29.
Rxa6 {[%clk 0:01:32.1]} 29... Qc7 {[%clk 0:01:17.1]} 30. Qc4 {[%clk 0:01:26.4]}
30... Qb7 {[%clk 0:01:13.4]} 31. Qc6 {[%clk 0:01:25.4]} 31... Qb8 {[%clk
0:01:10.7]} 32. Ra8 {[%clk 0:01:24.9]} 32... Qd6 {[%clk 0:01:04]} 33. Qxd6
{[%clk 0:01:24.9]} 33... Bxd6 {[%clk 0:01:04.9]} 34. Ng5 {[%clk 0:01:25.1]}
34... Be7 {[%clk 0:01:00.1]} 35. e4 {[%clk 0:01:19.7]} 35... Rf6 {[%clk
0:00:58]} 36. Ra7 {[%clk 0:01:17.7]} 36... Bd8 {[%clk 0:00:49.6]} 37. e5 {[%clk
0:01:17.2]} 37... Rf5 {[%clk 0:00:49.5]} 38. Nxe6+ {[%clk 0:01:17.1]} 1-0

[Event "*** SCC Grand Prix: Titled Tuesday Blitz"]
[Site "Chess.com"]
[Date "2020.07.21"]
[Round "5"]
[White "Bulldog167"]
[Black "AleksanderHnydiuk"]
[Result "1-0"]
[WhiteElo "2748"]
[BlackElo "2583"]
[TimeControl "180+1"]
[EndTime "10:53:49 PDT"]
[Termination "Bulldog167 won on time"]

1. e4 {[%clk 0:03:00.9]} 1... c5 {[%clk 0:02:58.9]} 2. Nf3 {[%clk 0:03:00.5]}
2... e6 {[%clk 0:02:59.1]} 3. d3 {[%clk 0:03:00.2]} 3... Nc6 {[%clk 0:02:58.7]}
4. g3 {[%clk 0:02:59.9]} 4... g6 {[%clk 0:02:59.2]} 5. Bg5 {[%clk 0:02:58.3]}
5... Qb6 {[%clk 0:02:51.3]} 6. Qc1 {[%clk 0:02:49.3]} 6... Bg7 {[%clk
0:02:50.5]} 7. c3 {[%clk 0:02:47.9]} 7... Nge7 {[%clk 0:02:42.3]} 8. Nbd2 {[%clk
0:02:46.7]} 8... Qc7 {[%clk 0:02:27.9]} 9. Bg2 {[%clk 0:02:43.6]} 9... d6 {[%clk
0:02:13.3]} 10. O-O {[%clk 0:02:34.8]} 10... h6 {[%clk 0:02:08.7]} 11. Be3
{[%clk 0:02:34.3]} 11... O-O {[%clk 0:02:07.7]} 12. d4 {[%clk 0:02:24.3]} 12...
b6 {[%clk 0:02:07]} 13. Rd1 {[%clk 0:02:14.3]} 13... Bb7 {[%clk 0:02:00.9]} 14.
dxc5 {[%clk 0:02:13.7]} 14... dxc5 {[%clk 0:01:19.4]} 15. Nc4 {[%clk 0:02:14]}
15... Ba6 {[%clk 0:01:06.3]} 16. Bf1 {[%clk 0:02:02.4]} 16... Kh7 {[%clk
0:00:59.6]} 17. Bf4 {[%clk 0:01:57.8]} 17... e5 {[%clk 0:00:55.3]} 18. Bd2
{[%clk 0:01:57.7]} 18... f5 {[%clk 0:00:44.5]} 19. exf5 {[%clk 0:01:48.5]} 19...
gxf5 {[%clk 0:00:40.5]} 20. Nh4 {[%clk 0:01:42.9]} 20... Rad8 {[%clk 0:00:35.3]}
21. Qc2 {[%clk 0:01:39.1]} 21... e4 {[%clk 0:00:31.5]} 22. Bf4 {[%clk
0:01:28.4]} 22... Qb7 {[%clk 0:00:04.2]} 23. Nd6 {[%clk 0:01:28.5]} 23... Rxd6
{[%clk 0:00:04.2]} 24. Rxd6 {[%clk 0:01:28.6]} 24... Bxf1 {[%clk 0:00:03.9]} 25.
Rxf1 {[%clk 0:01:28.7]} 25... Bf6 {[%clk 0:00:01.1]} 26. Rfd1 {[%clk 0:01:25.2]}
1-0

[Event "*** SCC Grand Prix: Titled Tuesday Blitz"]
[Site "Chess.com"]
[Date "2020.07.21"]
[Round "5"]
[White "Harry_Rakkel"]
[Black "sergivila"]
[Result "0-1"]
[WhiteElo "2534"]
[BlackElo "2397"]
[TimeControl "180+1"]
[EndTime "10:53:50 PDT"]
[Termination "sergivila won by resignation"]

1. e4 {[%clk 0:03:00.9]} 1... c5 {[%clk 0:02:59.2]} 2. Nf3 {[%clk 0:03:00.4]}
2... d6 {[%clk 0:02:59]} 3. d4 {[%clk 0:03:00]} 3... cxd4 {[%clk 0:02:59.9]} 4.
Nxd4 {[%clk 0:03:00]} 4... Nf6 {[%clk 0:02:59.4]} 5. Nc3 {[%clk 0:03:00.4]} 5...
a6 {[%clk 0:02:59.5]} 6. Be3 {[%clk 0:02:59.5]} 6... e5 {[%clk 0:02:58.9]} 7.
Nb3 {[%clk 0:02:58.6]} 7... Be6 {[%clk 0:02:58]} 8. f3 {[%clk 0:02:57.8]} 8...
h5 {[%clk 0:02:58.3]} 9. Qd2 {[%clk 0:02:55.9]} 9... Nbd7 {[%clk 0:02:57.9]} 10.
O-O-O {[%clk 0:02:55.5]} 10... Be7 {[%clk 0:02:51.9]} 11. Kb1 {[%clk 0:02:53.8]}
11... Rc8 {[%clk 0:02:39.3]} 12. g3 {[%clk 0:02:51.4]} 12... b5 {[%clk
0:02:35.9]} 13. a3 {[%clk 0:02:41.4]} 13... Nb6 {[%clk 0:02:25.5]} 14. Nc1
{[%clk 0:02:33.5]} 14... O-O {[%clk 0:02:08.4]} 15. h3 {[%clk 0:02:17.2]} 15...
d5 {[%clk 0:01:42.1]} 16. Bxb6 {[%clk 0:02:11.6]} 16... Qxb6 {[%clk 0:01:43]}
17. exd5 {[%clk 0:02:11.2]} 17... Rfd8 {[%clk 0:01:41.6]} 18. dxe6 {[%clk
0:02:01.8]} 18... Rxd2 {[%clk 0:01:40.3]} 19. exf7+ {[%clk 0:02:02.3]} 19...
Kxf7 {[%clk 0:01:39.1]} 20. Rxd2 {[%clk 0:02:03.2]} 20... Bxa3 {[%clk
0:01:21.1]} 21. Ne4 {[%clk 0:01:51.6]} 21... Nxe4 {[%clk 0:01:15]} 22. fxe4
{[%clk 0:01:50.6]} 22... Bb4 {[%clk 0:01:07.4]} 23. c3 {[%clk 0:01:37.6]} 23...
Be7 {[%clk 0:01:05.4]} 24. Be2 {[%clk 0:01:36.5]} 24... b4 {[%clk 0:00:51.1]}
25. Rf1+ {[%clk 0:01:33.1]} 25... Kg8 {[%clk 0:00:51]} 26. c4 {[%clk 0:01:29]}
26... Qe3 {[%clk 0:00:37.9]} 27. Rd7 {[%clk 0:01:28.2]} 27... Bf6 {[%clk
0:00:33]} 28. Bxh5 {[%clk 0:01:04.5]} 28... Qxe4+ {[%clk 0:00:32]} 29. Ka2
{[%clk 0:01:02.8]} 0-1

[Event "*** SCC Grand Prix: Titled Tuesday Blitz"]
[Site "Chess.com"]
[Date "2020.07.21"]
[Round "5"]
[White "Artyom_ChessMate"]
[Black "Efremov_Vlad"]
[Result "1-0"]
[WhiteElo "2579"]
[BlackElo "2192"]
[TimeControl "180+1"]
[EndTime "10:53:53 PDT"]
[Termination "Artyom_ChessMate won by checkmate"]

1. e4 {[%clk 0:03:00.9]} 1... c5 {[%clk 0:02:59.8]} 2. Nc3 {[%clk 0:02:59.9]}
2... Nc6 {[%clk 0:02:58.4]} 3. Bb5 {[%clk 0:03:00]} 3... Nd4 {[%clk 0:02:58.2]}
4. Nf3 {[%clk 0:03:00.2]} 4... Nxb5 {[%clk 0:02:48.3]} 5. Nxb5 {[%clk
0:03:01.1]} 5... a6 {[%clk 0:02:48.7]} 6. Nc3 {[%clk 0:03:00.7]} 6... e6 {[%clk
0:02:48]} 7. d4 {[%clk 0:03:00.4]} 7... cxd4 {[%clk 0:02:47.6]} 8. Qxd4 {[%clk
0:03:01.3]} 8... d6 {[%clk 0:02:43.2]} 9. Bg5 {[%clk 0:02:45.5]} 9... Nf6 {[%clk
0:02:24.2]} 10. O-O-O {[%clk 0:02:43.6]} 10... Be7 {[%clk 0:02:23.7]} 11. e5
{[%clk 0:02:41.1]} 11... dxe5 {[%clk 0:02:21.5]} 12. Qxe5 {[%clk 0:02:42]} 12...
Qb6 {[%clk 0:02:08.2]} 13. Ne4 {[%clk 0:02:39.6]} 13... Nxe4 {[%clk 0:01:23.2]}
14. Bxe7 {[%clk 0:02:37.7]} 14... Kxe7 {[%clk 0:00:55.7]} 15. Qxe4 {[%clk
0:02:36.7]} 15... Bd7 {[%clk 0:00:38.9]} 16. Ne5 {[%clk 0:02:26.3]} 16... Bc6
{[%clk 0:00:15.4]} 17. Qh4+ {[%clk 0:02:24.4]} 17... f6 {[%clk 0:00:15.3]} 18.
Qg3 {[%clk 0:01:51.2]} 18... Rhg8 {[%clk 0:00:10.2]} 19. Nc4 {[%clk 0:01:42.1]}
19... Qc5 {[%clk 0:00:06.3]} 20. Qc7+ {[%clk 0:01:41.8]} 20... Kf8 {[%clk
0:00:06]} 21. Nd6 {[%clk 0:01:34.8]} 21... Qg5+ {[%clk 0:00:05.4]} 22. Kb1
{[%clk 0:01:30.1]} 22... Qg6 {[%clk 0:00:05.6]} 23. h4 {[%clk 0:01:22.6]} 23...
h5 {[%clk 0:00:05]} 24. Rhe1 {[%clk 0:01:21.9]} 24... Bd5 {[%clk 0:00:03.9]} 25.
Rxd5 {[%clk 0:01:19.2]} 25... exd5 {[%clk 0:00:03.2]} 26. Qe7# {[%clk 0:01:19]}
1-0

[Event "*** SCC Grand Prix: Titled Tuesday Blitz"]
[Site "Chess.com"]
[Date "2020.07.21"]
[Round "5"]
[White "Panterov"]
[Black "Lion-Al-Messi"]
[Result "1-0"]
[WhiteElo "2181"]
[BlackElo "2430"]
[TimeControl "180+1"]
[EndTime "10:53:54 PDT"]
[Termination "Panterov won by checkmate"]

1. e4 {[%clk 0:03:00.9]} 1... e6 {[%clk 0:02:59.9]} 2. b3 {[%clk 0:03:00.1]}
2... d5 {[%clk 0:03:00.1]} 3. Bb2 {[%clk 0:03:00.4]} 3... Nf6 {[%clk 0:03:00.3]}
4. Nc3 {[%clk 0:02:58.7]} 4... d4 {[%clk 0:02:59.4]} 5. Nce2 {[%clk 0:02:58.8]}
5... c5 {[%clk 0:02:59]} 6. d3 {[%clk 0:02:58.2]} 6... Nc6 {[%clk 0:02:57.9]} 7.
f4 {[%clk 0:02:57.5]} 7... Ng4 {[%clk 0:02:56.8]} 8. Bc1 {[%clk 0:02:56.7]} 8...
g6 {[%clk 0:02:45]} 9. Nf3 {[%clk 0:02:53.8]} 9... Bg7 {[%clk 0:02:44.4]} 10. h3
{[%clk 0:02:52.8]} 10... Ne3 {[%clk 0:02:43.4]} 11. Bxe3 {[%clk 0:02:52.8]}
11... dxe3 {[%clk 0:02:44.3]} 12. c3 {[%clk 0:02:46.6]} 12... O-O {[%clk
0:02:43.9]} 13. g4 {[%clk 0:02:46.6]} 13... f5 {[%clk 0:02:43]} 14. gxf5 {[%clk
0:02:43.5]} 14... exf5 {[%clk 0:02:40.2]} 15. e5 {[%clk 0:02:43.2]} 15... Nxe5
{[%clk 0:02:30.5]} 16. fxe5 {[%clk 0:02:37.6]} 16... Bxe5 {[%clk 0:02:31.4]} 17.
Bg2 {[%clk 0:02:33.7]} 17... f4 {[%clk 0:02:23.5]} 18. O-O {[%clk 0:02:27.2]}
18... Bg7 {[%clk 0:02:22.9]} 19. d4 {[%clk 0:02:22.5]} 19... Qe7 {[%clk
0:02:14.8]} 20. Qd3 {[%clk 0:02:05]} 20... Bf5 {[%clk 0:02:14.1]} 21. Qc4+
{[%clk 0:02:05.2]} 21... Kh8 {[%clk 0:02:13.8]} 22. Qxc5 {[%clk 0:02:05.4]}
22... Qf7 {[%clk 0:01:57.2]} 23. Ne5 {[%clk 0:01:58.2]} 23... Qf6 {[%clk
0:01:56.8]} 24. Rxf4 {[%clk 0:01:56.5]} 24... Qg5 {[%clk 0:01:54.3]} 25. Nf3
{[%clk 0:01:48.1]} 25... Qh6 {[%clk 0:01:44.3]} 26. Rf1 {[%clk 0:01:42.1]} 26...
Bd3 {[%clk 0:01:34.9]} 27. Rxf8+ {[%clk 0:01:24.2]} 27... Rxf8 {[%clk
0:01:33.9]} 28. Ne5 {[%clk 0:01:19.6]} 28... Rxf1+ {[%clk 0:01:29]} 29. Bxf1
{[%clk 0:01:18.6]} 29... Qg5+ {[%clk 0:00:56.6]} 30. Bg2 {[%clk 0:01:18.6]}
30... Bxe5 {[%clk 0:00:16.3]} 31. Qf8# {[%clk 0:01:17.5]} 1-0

[Event "*** SCC Grand Prix: Titled Tuesday Blitz"]
[Site "Chess.com"]
[Date "2020.07.21"]
[Round "5"]
[White "petroniy_arbitr"]
[Black "jsl796"]
[Result "0-1"]
[WhiteElo "2270"]
[BlackElo "2885"]
[TimeControl "180+1"]
[EndTime "10:54:00 PDT"]
[Termination "jsl796 won by resignation"]

1. d4 {[%clk 0:03:00.9]} 1... Nf6 {[%clk 0:02:58.3]} 2. c4 {[%clk 0:03:00.5]}
2... g6 {[%clk 0:02:57.1]} 3. Nc3 {[%clk 0:03:00.1]} 3... Bg7 {[%clk 0:02:57.4]}
4. e4 {[%clk 0:02:59.7]} 4... O-O {[%clk 0:02:57.7]} 5. Nf3 {[%clk 0:02:59.1]}
5... d6 {[%clk 0:02:58]} 6. Be2 {[%clk 0:02:59.4]} 6... e5 {[%clk 0:02:58.2]} 7.
O-O {[%clk 0:02:53.5]} 7... exd4 {[%clk 0:02:57]} 8. Nxd4 {[%clk 0:02:53.2]}
8... Re8 {[%clk 0:02:57.9]} 9. f3 {[%clk 0:02:46.5]} 9... c6 {[%clk 0:02:53.3]}
10. Re1 {[%clk 0:02:43.8]} 10... d5 {[%clk 0:02:42.1]} 11. cxd5 {[%clk
0:01:56.3]} 11... cxd5 {[%clk 0:02:43]} 12. exd5 {[%clk 0:01:51.8]} 12... Nxd5
{[%clk 0:02:40.2]} 13. Nxd5 {[%clk 0:01:52]} 13... Qxd5 {[%clk 0:02:39.3]} 14.
Nb3 {[%clk 0:01:30.8]} 14... Qxd1 {[%clk 0:02:23.3]} 15. Rxd1 {[%clk 0:01:31]}
15... Nc6 {[%clk 0:02:23.7]} 16. Bb5 {[%clk 0:01:26.4]} 16... Bf5 {[%clk
0:02:22.6]} 17. Bxc6 {[%clk 0:01:25.1]} 17... bxc6 {[%clk 0:02:21.9]} 18. Kf2
{[%clk 0:01:22.6]} 18... Rad8 {[%clk 0:02:12.8]} 19. Be3 {[%clk 0:01:18.8]}
19... Bxb2 {[%clk 0:02:11]} 20. Rxd8 {[%clk 0:01:16.2]} 20... Rxd8 {[%clk
0:02:11.9]} 21. Re1 {[%clk 0:01:14.8]} 21... Be6 {[%clk 0:02:08]} 22. Bxa7
{[%clk 0:01:07.7]} 22... Ra8 {[%clk 0:02:06.8]} 23. Bd4 {[%clk 0:01:07.6]} 23...
Rxa2 {[%clk 0:01:59.4]} 24. Re2 {[%clk 0:00:53.8]} 24... Bxd4+ {[%clk 0:01:59]}
25. Nxd4 {[%clk 0:00:53.5]} 25... Rxe2+ {[%clk 0:01:59.9]} 26. Kxe2 {[%clk
0:00:53.9]} 26... Bd7 {[%clk 0:01:59.9]} 27. Kd3 {[%clk 0:00:53.2]} 27... Kf8
{[%clk 0:02:00.2]} 28. Kc4 {[%clk 0:00:53.3]} 28... Ke7 {[%clk 0:02:00.6]} 29.
Kc5 {[%clk 0:00:53.7]} 29... g5 {[%clk 0:01:58.8]} 30. g3 {[%clk 0:00:52.4]}
30... h5 {[%clk 0:01:57.4]} 31. Ne2 {[%clk 0:00:47.6]} 31... Ke6 {[%clk
0:01:54.8]} 32. f4 {[%clk 0:00:47.2]} 32... f6 {[%clk 0:01:50.7]} 33. Nd4+
{[%clk 0:00:46.3]} 33... Ke7 {[%clk 0:01:47.9]} 34. fxg5 {[%clk 0:00:42.7]}
34... fxg5 {[%clk 0:01:47.9]} 35. h4 {[%clk 0:00:41.4]} 35... Kf6 {[%clk
0:01:43]} 36. Nf3 {[%clk 0:00:36.8]} 36... gxh4 {[%clk 0:01:41.9]} 37. Nxh4
{[%clk 0:00:32.5]} 37... Kg5 {[%clk 0:01:41]} 38. Ng2 {[%clk 0:00:29.7]} 38...
Kg4 {[%clk 0:01:38.3]} 39. Nf4 {[%clk 0:00:29.9]} 39... h4 {[%clk 0:01:38.3]}
40. Nd3 {[%clk 0:00:19.6]} 40... Kxg3 {[%clk 0:01:35.7]} 0-1